Cogmind - Beta 11 @@@ ROGUE MODE // 2022.04.11 @ 23:33:32 Player: CrashCricket Result: Destroyed by as-45780 with Assembled F-torch Performance ------------- Evolutions (0) 0 Regions Visited (2) 400 Robots Destroyed (5) 25 Value Destroyed (178) 178 Prototype IDs (0) 0 Alien Tech Used (0) 0 Bonus (0) 0 TOTAL SCORE: 603 Bonus ------- None Cogmind --------- Core Integrity 0/250 Matter 255/300 Energy 100/100 System Corruption 4% Temperature Cool (60) Movement Core (50) Location -10/Mines Parts ------- > --- POWER (1) -------- (None) > --- PROPULSION (2) --- (None) > --- UTILITY (2) ------ (None) > --- WEAPON (2) ------- (None) > --- INVENTORY (5) ---- Compact Wheel Improved Heat Sink Small Storage Unit Peak State ------------ > --- POWER ------------ Ion Engine > --- PROPULSION ------- Compact Wheel Compact Wheel > --- UTILITY ---------- Small Storage Unit Light Armor Plating > --- WEAPON ----------- Assault Rifle Light Assault Rifle > --- INVENTORY -------- Light Treads Light Treads Small Storage Unit Signal Interpreter Light Assault Rifle [Rating: 7] Favorites ----------- Power Ion Engine Engine Ion Engine Propulsion Light Treads Treads Light Treads Wheel Compact Wheel Utility Small Storage Unit Device Sensor Array Storage Small Storage Unit Processor Signal Interpreter Protection Light Armor Plating Weapon Light Assault Rifle Ballistic Gun Light Assault Rifle Build | -11 -10 -10 ------- Run | Scr Mat Min Slots Evolved . | . . . Power . | . . . Propulsion . | . . . Utility . | . . . Weapon . | . . . Parts Attached 17 | 10 1 6 Power 2 | 1 . 1 Engine 2 | 1 . 1 Core . | . . . Reactor . | . . . Propulsion 6 | 4 . 2 Treads 4 | 2 . 2 Leg . | . . . Wheel 2 | 2 . . Hover . | . . . Flight . | . . . Utility 4 | 1 1 2 Device 1 | . . 1 Storage 1 | 1 . . Processor 1 | . . 1 Hackware . | . . . Protection 1 | . 1 . Artifact . | . . . Weapon 5 | 4 . 1 Energy Gun . | . . . Energy Cannon . | . . . Ballistic Gun 5 | 4 . 1 Ballistic Cannon . | . . . Launcher . | . . . Special Weapon . | . . . Impact Weapon . | . . . Slashing Weapon . | . . . Piercing Weapon . | . . . Special Melee Weapon . | . . . Unidentified Prototypes . | . . . Parts Lost 11 | . . 11 Power 2 | . . 2 Propulsion 3 | . . 3 Utility 3 | . . 3 Weapon 3 | . . 3 Highest Loss Streak 6 | . . 6 To Critical Strikes . | . . . Average Slot Usage (%) 81 | . 97 78 Engine 13 | . 14 13 Treads 14 | . . 16 Wheel 11 | . 28 8 Device 2 | . . 2 Storage 11 | . 14 11 Processor 2 | . . 2 Protection 5 | . 11 4 Ballistic Gun 19 | . 28 17 Naked Turns 1 | . . 1 Heaviest Build 16 | 13 16 16 Greatest Support 40 | 40 32 40 Greatest Overweight (x) . | . . . Average Overweight (x) . | . . . Largest Inventory Capacity 8 | 8 8 8 Average Capacity 7 | 6 8 7 Most Carried 7 | 5 6 7 Average Carried 4 | 2 5 4 Final Capacity 8 | 8 8 5 Final Carried 6 | 4 6 3 Class Distribution -------------------- 100% | Mutant Dominant Class ---------------- Mutant | -10/Materials Mutant | -10/Mines Resources | -11 -10 -10 ----------- Run | Scr Mat Min Matter Collected 389 | 199 . 190 Remotely . | . . . Salvage Created 288 | 98 . 190 Parts 9 | 2 . 7 Haulers Intercepted . | . . . Recyclers Shooed . | . . . Parts Field Recycled . | . . . Retrieved Matter . | . . . Parts Self-Destructed . | . . . Prevented . | . . . Kills | -11 -10 -10 ------- Run | Scr Mat Min Combat Hostiles Destroyed 4 | . . 4 Guns 4 | . . 4 Classes Destroyed 2 | 1 . 1 Recycler 1 | 1 . . Grunt 4 | . . 4 Best Kill Streak 2 | 1 . 2 Combat Bots Only 2 | . . 2 Max Kills in Single Turn 1 | 1 . 1 Gunslinging . | . . . Exploded . | . . . Melee . | . . . Uniques/NPCs Destroyed . | . . . Combat | -11 -10 -10 -------- Run | Scr Mat Min Damage Taken 1227 | . . 1227 Core 254 | . . 254 Absorbed by Shields . | . . . Core Remaining (%) 100 | 100 . . Volleys Fired 44 | 4 . 40 Largest 2 | 2 . 2 Hottest 40 | 40 . 40 Shots Fired 69 | 8 . 61 Gun 69 | 8 . 61 Cannon . | . . . Launcher . | . . . Special . | . . . Kinetic 69 | 8 . 61 Thermal . | . . . Explosive . | . . . Electromagnetic . | . . . Robot Hit Streak 8 | 3 . 8 Robot Miss Streak 3 | 1 . 3 Penetration Max . | . . . Secondary Targets 2 | . . 2 Max Gunslinging Chain 1 | . . 1 Shots Hit Robots 37 | 6 . 31 Core Hits 14 | 2 . 12 Critical Kills . | . . . Critical Parts Destroyed 1 | . . 1 Critical Strikes 1 | . . 1 Destroy 1 | . . 1 Melee Attacks . | . . . Impact . | . . . Slashing . | . . . Piercing . | . . . Sneak Attacks . | . . . Combat Hostiles . | . . . Follow-up Attacks . | . . . Damage Inflicted 360 | 71 . 289 Guns 360 | 71 . 289 Cannons . | . . . Explosions . | . . . Melee . | . . . Ramming . | . . . Kinetic 360 | 71 . 289 Thermal . | . . . Explosive . | . . . Electromagnetic . | . . . Impact . | . . . Slashing . | . . . Piercing . | . . . Highest Corruption 4 | . . 4 Average Corruption 2 | . . 2 Corruption Purged . | . . . Corruption Blocked . | . . . Overload Shots . | . . . Overflow Damage . | . . . Projectiles . | . . . Explosions . | . . . Melee . | . . . Knockbacks . | . . . Impact . | . . . Kinetic . | . . . Secondary . | . . . Self-Inflicted Damage . | . . . Shots . | . . . Rammed . | . . . Targets Rammed . | . . . Kicked . | . . . Crushed . | . . . Highest Temperature 33 | . . 33 Average Temperature 10 | . . 10 Received Heat Transfer 625 | . . 625 Siege Activations . | . . . Robots Corrupted . | . . . Combat Hostiles . | . . . Parts Fried . | . . . Impact Corruptions . | . . . Robots Melted . | . . . Combat Hostiles . | . . . Parts Melted . | . . . Heat Transferred . | . . . Parts Sabotaged . | . . . Parts Stolen . | . . . Parts Stripped . | . . . Power Chain Reactions . | . . . Missiles Intercepted . | . . . Alert | -11 -10 -10 ------- Run | Scr Mat Min Peak Influence 90 | 5 3 90 Initial 3 | . 3 . Average 50 | 1 3 72 Maximum Alert Level . | . . . Low Security (%) 100 | 100 100 100 Level 1 . | . . . Level 2 . | . . . Level 3 . | . . . Level 4 . | . . . Level 5 . | . . . High Security . | . . . Max Security . | . . . Squads Dispatched . | . . . Investigation . | . . . Extermination . | . . . Reinforcement . | . . . Assault . | . . . Garrison . | . . . Intercept . | . . . Searches Triggered . | . . . Construction Impeded . | . . . Haulers Reinforced . | . . . Active Scanning Responses . | . . . Cargo Convoy Interrupts . | . . . Stealth | -11 -10 -10 --------- Run | Scr Mat Min Distress Signals . | . . . Communications Jammed . | . . . Distress Signals . | . . . Times Spotted 18 | . . 18 Peak Tracking Total 13 | . . 13 Tactical Retreats . | . . . Traps | -11 -10 -10 ------- Run | Scr Mat Min Traps Triggered . | . . . Indirectly . | . . . Trap Hack Attempts . | . . . Triggered . | . . . Disarmed . | . . . Reprogrammed . | . . . Reused . | . . . Traps Extracted . | . . . Installed . | . . . Triggered . | . . . Machines | -11 -10 -10 ---------- Run | Scr Mat Min Machines Disabled 1 | . . 1 Max in Single Turn 1 | . . 1 Machines Sabotaged . | . . . Garrisons Compromised . | . . . Overloaded Fab Kills . | . . . Hacking | -11 -10 -10 --------- Run | Scr Mat Min Machines Accessed 1 | . . 1 Terminals 1 | . . 1 Fabricators . | . . . Repair Stations . | . . . Recycling Units . | . . . Scanalyzers . | . . . Garrison Access . | . . . Total Hacks 1 | . . 1 Successful 1 | . . 1 Failed . | . . . Catastrophic . | . . . Database Lockouts . | . . . Manual . | . . . Terminals 1 | . . 1 Fabricators . | . . . Repair Stations . | . . . Recycling Units . | . . . Scanalyzers . | . . . Garrison Access . | . . . Terminal Hacks 1 | . . 1 Record 1 | . . 1 Fabricator Hacks . | . . . Repair Station Hacks . | . . . Recycling Unit Hacks . | . . . Scanalyzer . | . . . Garrison Access Hacks . | . . . Unauthorized Hacks . | . . . Terminals . | . . . Fabricators . | . . . Repair Stations . | . . . Recycling Units . | . . . Scanalyzers . | . . . Garrison Access . | . . . Data Cores Recovered . | . . . Used . | . . . Hacking Detections . | . . . Full Trace Events . | . . . Feedback Events . | . . . Feedback Blocked . | . . . Robot Schematics Acquired . | . . . Robots Built . | . . . Authchips . | . . . Time . | . . . Total Robot Build Rating . | . . . Part Schematics Acquired . | . . . Parts Built . | . . . Authchips . | . . . Time . | . . . Total Part Build Rating . | . . . Parts Repaired . | . . . Time . | . . . Parts Recycled . | . . . Recycled Matter . | . . . Retrieved Matter . | . . . Retrieved Components . | . . . Parts Scanalyzed . | . . . Part Schematics Acquired . | . . . Parts Damaged . | . . . Bothacking | -11 -10 -10 ------------ Run | Scr Mat Min Used RIF Installer . | . . . Robots Hacked . | . . . Non-combat . | . . . Combat . | . . . Robot Hacks Applied . | . . . Relay Couplers Released . | . . . Fabnet Peak Effective % . | . . . Robots Rewired . | . . . Allies Hacked . | . . . Hacks Repelled . | . . . Allies | -11 -10 -10 -------- Run | Scr Mat Min Total Allies . | . . . Largest Group . | . . . Highest-Rated Group . | . . . Highest-Rated Ally . | . . . Total Orders . | . . . Ally Attacks . | . . . Total Damage . | . . . Kills . | . . . Allies Corrupted . | . . . Allies Melted . | . . . Intel | -11 -10 -10 ------- Run | Scr Mat Min Robot Analysis Total . | . . . Derelict Logs Recovered . | . . . Drone Launches . | . . . Drone Recoveries . | . . . Exploration | -11 -10 -10 ------------- Run | Scr Mat Min Turns Passed 465 | 91 54 320 Spaces Moved 253 | 55 49 149 Core 11 | 11 . . Treads 120 | 15 . 105 Legs . | . . . Wheels 122 | 29 49 44 Hover . | . . . Flight . | . . . Fastest Speed 50 | 50 100 100 Average Speed 126 | 106 100 142 Slowest Speed 160 | 160 100 160 Overloaded Moves . | . . . Propulsion Burnouts . | . . . Robots Hopped . | . . . Cave-ins Triggered . | . . . Exploration Rate (%) 14 | 4 9 29 Regions Visited 2 Branch Regions 1 Pre-discovered Areas . | . . . Known Exits Taken . | . . . Unknown Exits Taken 2 | 1 1 . Scrap Searched . | . . . Spaces Dug . | . . . Terrain Destroyed . | . . . Melee . | . . . Projectile . | . . . AOE . | . . . Terrain Rammed . | . . . Walls Destroyed . | . . . Machines Disabled . | . . . Actions | -11 -10 -10 --------- Run | Scr Mat Min Total 335 | 78 54 203 Wait 7 | . . 7 Move 251 | 54 48 149 Hop . | . . . Pick Up 15 | 10 4 1 Fast Attach . | . . . Attach 11 | 6 1 4 Detach . | . . . Swap 6 | 4 . 2 Drop 1 | . 1 . Fire 44 | 4 . 40 Melee . | . . . Ram . | . . . Kick . | . . . Crush . | . . . Escape Stasis . | . . . Rewire . | . . . Trap . | . . . Miscellaneous . | . . . Route ------- -11/Scrapyard -10/Materials -10/Mines History --------- Turn | Location | Event 9 | -11/Scrapyard | Discovered new exit (range 16) 92 | -11/Scrapyard | Entered Materials 138 | -10/Materials | Discovered new exit (range 8) 146 | -10/Materials | Entered Mines 300 | -10/Mines | Lost 5 parts (1p1n1u2w) 313 | -10/Mines | Build established: Mutant 430 | -10/Mines | Assembled infested the area 447 | -10/Mines | Core integrity fell below 50% 463 | -10/Mines | Core integrity fell below 20% 466 | -10/Mines | Destroyed by as-45780 with Assembled F-torch Last Messages --------------- Current location identified: Mines >>Query(Repair Station) Self-contained repair facility capable of restoring the integrity of damaged components. Serious internal issues such as prototype malfunction and component deterioration are beyond the scope of repair. Advanced repair stations can complete complex tasks more quickly. K-01 Serf collects debris. K-01 Serf cleans the Core Extractor. K-01 Serf collects debris. ALERT: Infestation in the mines, dispatching Demolisher response squad. as-00600 destroyed. U-05 Engineer system corrupted by crushing effect. Lgt. Assault Rifle destroyed. Lgt. Treads destroyed. System corrupted by crushing effect (+1). Knocked back. Ion Engine destroyed. Signal Interpreter destroyed. System corrupted by crushing effect (+3). Sensor Array destroyed. Map ----- +----------------------------------------------------+ | ?????# ##??????????????????????????? | | ?????# ##??????????????????????????? | | ?????## ##?????????????????????????? | | ??????## #?????????????????????????? | | ???????## #?????????????????????????? | | ??###??## ##?????????????????????????? | | ?## ### ##??????????????????????????? | | ?# ##???????????????????????????? | | ?# """ ##???????????????????????????? | | ?# """ #???????????????????????????? | | ?## """ #???????????????????????????? | | ??# #???????????????????????????? | | ??# #???????????????????????????? | | ??# ##???????????????????????????? | | ??## #????????????????????????????? | | ???# #?????????????????????##?????? | | ???## ##???????????????????? ##????? | | ????# #???????????????????? ##???? | | ???## ##??????????????????# ##### | | ???# ##????????????????# | | ???# ##??????????????# ?? | | ???# ############### % #??????? | | ???## ## aa #???????? | | ????# ### a a ##???????? | | ????# #?## ## aaaaa####### ##????????? | | ????# #??## #### @aa ##??????###?????????? | | ????# ##### #??## aa#???????????????????? | | ????# #???## ##???????????????????? | | ????# ##### #########????????????????????? | | ????# #??# * ##????????????????????? | | ????# #??# "" """ T#????????????????????? | | ????# #??# """=""" ##????????????????????? | | ????# #??# " """ #?????????????????????? | | ????# #??# #?????????????????????? | | ????# #??# """ """ #?????????????????????? | | ????# #??# """ """ #?????????????????????? | | ????# #??# """ """ #?????????????????????? | | ????# #??# #?????????????????????? | | ?#### ##?############?????????????????????? | | ?# #??????????????????????????????????? | | ?# ""*=#??????????????????????????????????? | | ?# ""! #??????????????????????????????????? | | ?# """=#??????????????????????????????????? | | ?# #??????????????????????????????????? | | ?# #??????????????????????????????????? | | ?# #??????????????????????????????????? | | ?#######??????????????????????????????????? | | ??????????????????????????????????????????? | | ??????????????????????????????????????????? | | ??????????????????????????????????????????? | +----------------------------------------------------+ Best States ------------- Heat Dissipation 25 Energy Generation 10 Energy Capacity 250 Matter Stores 249 Matter Capacity 300 Sight Range 16 Robot Scan Range 14 Terrain Scan Density 10 Armor Coverage 150 Evasion (%) 50 Recoil Reduction 2 Item Schematics ----------------- None Robot Schematics ------------------ None Fabricated ------------ Nothing Alien Tech Used ----------------- None Achievements -------------- None Challenges ------------ None Game ------ Seed BiocellEtherialBattery Manual? 0 Play Time 00:13:25 Cumulative 13.4 hours Start 2022.04.11 @ 21:52:07 End 2022.04.11 @ 23:33:32 Sessions 1 Manual Loads 0 Difficulty Rogue Special Mode None Game No. 14 Rogue 5 Adventurer 2 Explorer 7 Win Type - Total 0 Types 0/0/0/0/0/0/0/0/0 Lore% 6 Gallery% 19 Achievement% 18 Wizard Run 0 Options --------- ASCII 0 Keyboard 0 Movement Mouse Keybinds 0 Fullscreen 1 Font 18/TerminusBold Map View 76x50 Tactical HUD 0 Map Filters NONE Filters NONE Steam 1 RUN: 08ec4ffb-0e43-4b3f-a9ea-8de072c5c0ae